[Event "Oceania Zonal Women 2023"]
[Site "Melbourne"]
[Date "2023.01.24"]
[Round "2.6"]
[White "O'Carroll, Om"]
[Black "Cheng, Chao Xin"]
[Result "0-1"]
[ECO "B53"]
[WhiteElo "1525"]
[BlackElo "1806"]
[Annotator "NA COMBH"]
[PlyCount "124"]
[EventDate "2023.01.09"]
[EventType "swiss"]
[EventCountry "AUS"]
[SourceTitle "playchess.com"]
[Source "ChessBase"]
[SourceQuality "1"]
[TimeControl "5400+30"]

1. e4 {[%emt 0:00:03]} c5 {[%emt 0:00:08]} 2. Nf3 {[%emt 0:00:04]} d6 {[%emt 0:01:31]} 3. d4 {[%emt 0:00:09]} cxd4 {[%emt 0:00:08]} 4. Qxd4 {[%emt 0:00:05]} Nc6 {[%emt 0:01:51]} 5. Qe3 {[%emt 0:00:11]} a6 {[%emt 0:01:21]} 6. Be2 {[%emt 0:02:34]} Nf6 {[%emt 0:00:44]} 7. O-O {[%emt 0:02:30]} Qc7 {[%emt 0:02:31]} 8. c4 {[%emt 0:03:19]} e6 {[%emt 0:05:19]} 9. Nc3 {[%emt 0:00:49]} Be7 {[%emt 0:02:49]} 10. b3 {[%emt 0:05:17]} O-O {[%emt 0:05:08]} 11. Bb2 {[%emt 0:02:27]} Ng4 {[%emt 0:06:28]} 12. Qd2 {[%emt 0:02:07]} Nge5 {[%emt 0:04:04]} 13. Nxe5 {[%emt 0:05:59]} dxe5 {[%emt 0:00:23]} 14. Rad1 {[%emt 0:03:49]} Rb8 {[%emt 0:14:04]} 15. a3 {[%emt 0:10:43]} Na5 {[%emt 0:05:01]} 16. Qc2 {[%emt 0:01:12]} b6 {[%emt 0:01:54]} 17. Nb1 {[%emt 0:09:43]} Bb7 {[%emt 0:11:05]} 18. Nd2 {[%emt 0:04:20]} f5 {[%emt 0:06:28]} 19. Bd3 {[%emt 0:15:11]} f4 {[%emt 0:04:13]} 20. Nf3 {[%emt 0:00:35]} Nc6 {[%emt 0:01:11]} 21. b4 {[%emt 0:00:41]} Bf6 {[%emt 0:03:45]} 22. c5 {[%emt 0:08:20]} b5 {[%emt 0:01:56]} 23. Qb3 {[%emt 0:01:06]} Bc8 {[%emt 0:01:04]} 24. Be2 {[%emt 0:01:52]} Nd8 {[%emt 0:02:56]} 25. Bc3 {[%emt 0:10:16]} Nf7 {[%emt 0:01:30]} 26. a4 {[%emt 0:00:26]} Re8 {[%emt 0:00:31]} 27. axb5 {[%emt 0:01:22]} axb5 {[%emt 0:00:07]} 28. Ra1 {[%emt 0:00:42]} Bd7 {[%emt 0:00:38]} 29. Ra5 {[%emt 0:04:57]} g5 {[%emt 0:04:28]} 30. h3 {[%emt 0:00:00]} Kg7 {[%emt 0:01:37]} 31. Nh2 {[%emt 0:00:00]} Nh6 {[%emt 0:02:45]} 32. Rfa1 {[%emt 0:00:00]} Bc6 {[%emt 0:02:14]} 33. Bd3 {[%emt 0:03:11]} Rb7 {[%emt 0:02:18]} 34. Bc2 {[%emt 0:00:49]} Nf7 {[%emt 0:00:49]} 35. Ra8 {[%emt 0:00:43]} Re7 {[%emt 0:01:41]} 36. Qb2 {[%emt 0:01:27]} h5 {[%emt 0:01:24]} 37. R8a6 {[%emt 0:00:51]} Rb8 {[%emt 0:01:00]} 38. Ra7 {[%emt 0:00:11]} Qd8 {[%emt 0:00:42]} 39. Nf3 {[%emt 0:00:29]} Rxa7 {[%emt 0:00:48]} 40. Rxa7 {[%emt 0:00:02]} Ra8 {[%emt 0:00:36]} 41. Rxa8 {[%emt 0:00:35]} Qxa8 {[%emt 0:00:28]} 42. Bxe5 {[%emt 0:00:38]} Nxe5 {[%emt 0:00:08]} 43. Nxe5 {[%emt 0:00:14]} Bxe4 {[%emt 0:00:56]} 44. Bb3 {[%emt 0:00:26]} Bxg2 {[%emt 0:01:01]} 45. Bxe6 {[%emt 0:01:01]} Bd5 {[%emt 0:00:35]} 46. Bd7 {[%emt 0:00:43]} Qb8 {[%emt 0:00:25]} 47. c6 {[%emt 0:01:15]} Qxe5 {[%emt 0:00:13]} 48. Qc2 {[%emt 0:00:32]} Qc7 {[%emt 0:00:48]} 49. Qc5 {[%emt 0:00:19]} Bc4 {[%emt 0:00:26]} 50. h4 {[%emt 0:00:31]} Bd8 {[%emt 0:00:48]} 51. hxg5 {[%emt 0:00:16]} f3 {[%emt 0:00:29]} 52. Qd4+ {[%emt 0:00:13]} Kg6 {[%emt 0:00:24]} 53. Qe4+ {[%emt 0:00:46]} Kxg5 {[%emt 0:00:34]} 54. Qf5+ {[%emt 0:00:06]} Kh6 {[%emt 0:00:25]} 55. Qf8+ {[%emt 0:00:08]} Kg6 {[%emt 0:00:23]} 56. Qf5+ {[%emt 0:00:13]} Kg7 {[%emt 0:00:20]} 57. Qxf3 {[%emt 0:01:08]} Qe5 {[%emt 0:00:26]} 58. Qg2+ {[%emt 0:00:18]} Kf6 {[%emt 0:00:27]} 59. Qf3+ {[%emt 0:00:22]} Ke7 {[%emt 0:00:20]} 60. Qg2 {[%emt 0:01:42]} Qe1+ {[%emt 0:00:14]} 61. Kh2 {[%emt 0:00:03]} Bc7+ {[%emt 0:00:11]} 62. Kh3 {[%emt 0:00:08]} Bf1 {[%emt 0:00:13]} 0-1